Cogmind - Beta 14 @@@ ROGUE MODE // 2025.01.11 @ 17:05:22 Player: SuperSwiss Result: Self-destructed Performance ------------- Evolutions (1) 500 Regions Visited (2) 400 Robots Destroyed (20) 100 Value Destroyed (339) 339 Prototype IDs (0) 0 Alien Tech Used (0) 0 Bonus (0) 0 TOTAL SCORE: 1339 Bonus ------- None Cogmind --------- Core Integrity 366/400 Matter 174/300 Energy 12/100 System Corruption 0% Temperature Cool (9) Movement Rolling (175) Ox5 Location -9/Materials Parts ------- > --- POWER (1) -------- (None) > --- PROPULSION (2) --- Compact Wheel > --- UTILITY (3) ------ Improved Heat Sink Huge Storage Unit Light Armor Plating > --- WEAPON (3) ------- Shock Rifle Shock Rifle Shock Rifle > --- INVENTORY (25) --- Light Armor Plating Shock Rifle Small Laser Mining Claw Peak State ------------ > --- POWER ------------ Light Ion Engine > --- PROPULSION ------- Wheel Compact Wheel > --- UTILITY ---------- Improved Heat Sink Huge Storage Unit Light Armor Plating > --- WEAPON ----------- Shock Rifle Shock Rifle Shock Rifle > --- INVENTORY -------- Compact Wheel Compact Wheel Light Armor Plating Shock Rifle Small Laser Mining Claw [Rating: 17] Favorites ----------- Power Light Ion Engine Engine Light Ion Engine Propulsion Wheel Treads Light Treads Wheel Wheel Utility Light Armor Plating Device Improved Heat Sink Storage Huge Storage Unit Protection Light Armor Plating Weapon Small Laser Energy Gun Small Laser Energy Cannon Particle Cannon Ballistic Gun Light Assault Rifle Ballistic Cannon Light Cannon Slashing Weapon Mining Claw Build | -11 -10 -9 ------- Run | Yrd Mat Mat Slots Evolved 2 | . . 2 Power . | . . . Propulsion . | . . . Utility 1 | . . 1 Weapon 1 | . . 1 Parts Attached 28 | 6 10 12 Power 4 | 1 1 2 Engine 4 | 1 1 2 Core . | . . . Reactor . | . . . Propulsion 7 | 2 3 2 Treads 1 | 1 . . Leg . | . . . Wheel 6 | 1 3 2 Hover . | . . . Flight . | . . . Utility 6 | 1 4 1 Device 1 | . . 1 Storage 4 | 1 3 . Processor . | . . . Hackware . | . . . Protection 1 | . 1 . Artifact . | . . . Weapon 11 | 2 2 7 Energy Gun 4 | 1 . 3 Energy Cannon 1 | . . 1 Ballistic Gun 3 | 1 2 . Ballistic Cannon 2 | . . 2 Launcher . | . . . Special Weapon . | . . . Impact Weapon . | . . . Slashing Weapon 1 | . . 1 Piercing Weapon . | . . . Special Melee Weapon . | . . . Unidentified Prototypes . | . . . Parts Lost 10 | . 4 6 Power 3 | . . 3 Propulsion 6 | . 3 3 Utility . | . . . Weapon 1 | . 1 . Highest Loss Streak 5 | . 2 5 To Critical Strikes . | . . . Average Slot Usage (%) 88 | . 86 95 Engine 10 | . 11 9 Treads 3 | . 5 . Wheel 20 | . 19 21 Device 3 | . . 11 Storage 13 | . 14 11 Protection 7 | . 6 11 Energy Gun 11 | . 14 4 Energy Cannon 1 | . . 3 Ballistic Gun 9 | . 13 . Ballistic Cannon 5 | . . 18 Slashing Weapon 1 | . . 4 Peak Build Rating 17 | 6 7 17 Average Rating 7 | 3 6 11 On Entrance 4 | . 6 7 Naked Turns . | . . . Heaviest Build 97 | 10 88 97 Greatest Support 32 | 20 26 32 Greatest Overweight (x) 3 | . 3 3 Average Overweight (x) 1 | . 1 2 Largest Inventory Capacity 25 | 8 25 25 Average Capacity 18 | 6 17 25 Most Carried 10 | 5 6 10 Average Carried 4 | 2 4 4 Final Capacity 25 | 8 25 25 Final Carried 5 | 1 5 4 Class Distribution -------------------- 81% | Mutant 18% | Tank Dominant Class ---------------- Mutant | -10/Materials Tank | -9/Materials Resources | -11 -10 -9 ----------- Run | Yrd Mat Mat Matter Collected 450 | 248 122 80 Remotely . | . . . Salvage Created 660 | . 446 214 Parts 38 | . 26 12 Haulers Intercepted 1 | . 1 . Recyclers Shooed 3 | . 1 2 Parts Field Recycled . | . . . Retrieved Matter . | . . . Parts Self-Destructed . | . . . Prevented . | . . . Kills | -11 -10 -9 ------- Run | Yrd Mat Mat Combat Hostiles Destroyed 15 | . 11 4 Guns 11 | . 11 . Cannons 4 | . . 4 Classes Destroyed 6 | . 5 1 Worker 1 | . 1 . Hauler 1 | . 1 . Recycler 3 | . 1 2 Swarmer 9 | . 6 3 Grunt 5 | . 5 . Sentry 1 | . . 1 Best Kill Streak 6 | . 6 5 Combat Bots Only 3 | . 3 3 Max Kills in Single Turn 2 | . 1 2 Gunslinging . | . . . Exploded . | . . . Melee . | . . . Uniques/NPCs Destroyed . | . . . Combat | -11 -10 -9 -------- Run | Yrd Mat Mat Hostile Shots Fired 128 | . 78 50 Missed 36 | . 19 17 Damage Taken 995 | . 587 408 Core 170 | . 136 34 Absorbed by Shields . | . . . Core Remaining (%) 72 | 100 45 . Volleys Fired 61 | . 45 16 Largest 3 | . 2 3 Hottest 150 | . 60 150 Shots Fired 124 | . 90 34 Gun 98 | . 90 8 Cannon 26 | . . 26 Launcher . | . . . Special . | . . . Kinetic 69 | . 45 24 Thermal 47 | . 45 2 Explosive . | . . . Electromagnetic 8 | . . 8 Robot Hit Streak 18 | . 18 9 Robot Miss Streak 5 | . 3 5 Penetration Max . | . . . Secondary Targets 3 | . 3 . Max Gunslinging Chain 1 | . 1 . Shots Hit Robots 85 | . 67 18 Core Hits 32 | . 26 6 Critical Kills . | . . . Critical Parts Destroyed . | . . . Critical Strikes 1 | . . 1 Blast 1 | . . 1 Melee Attacks 1 | . . 1 Impact . | . . . Slashing 1 | . . 1 Piercing . | . . . Sneak Attacks . | . . . Combat Hostiles . | . . . Follow-up Attacks . | . . . Damage Inflicted 1011 | . 661 350 Guns 750 | . 661 89 Cannons 261 | . . 261 Explosions . | . . . Melee . | . . . Ramming . | . . . Kinetic 490 | . 271 219 Thermal 432 | . 390 42 Explosive . | . . . Electromagnetic 89 | . . 89 Impact . | . . . Slashing . | . . . Piercing . | . . . Highest Corruption . | . . . Average Corruption . | . . . Corruption Purged . | . . . Corruption Blocked . | . . . Overload Shots . | . . . Overflow Damage 15 | . . 15 Projectiles 15 | . . 15 Explosions . | . . . Melee . | . . . Knockbacks 2 | . . 2 Impact . | . . . Kinetic 2 | . . 2 Secondary . | . . . Self-Inflicted Damage . | . . . Shots . | . . . Rammed . | . . . Targets Rammed . | . . . Kicked . | . . . Crushed . | . . . Highest Temperature 84 | . 79 84 Average Temperature 25 | . 22 42 Received Heat Transfer 312 | . 186 126 Siege Activations . | . . . Robots Corrupted . | . . . Combat Hostiles . | . . . Parts Fried . | . . . Impact Corruptions . | . . . Robots Melted . | . . . Combat Hostiles . | . . . Parts Melted 1 | . 1 . Heat Transferred 949 | . 875 74 Parts Sabotaged . | . . . Parts Stolen . | . . . Parts Stripped . | . . . Power Chain Reactions . | . . . Alert | -11 -10 -9 ------- Run | Yrd Mat Mat Peak Influence 267 | . 267 213 Initial 50 | . . 50 Average 110 | . 100 149 Maximum Alert Level 1 | . 1 1 Low Security (%) 89 | 100 87 94 Level 1 10 | . 12 5 Level 2 . | . . . Level 3 . | . . . Level 4 . | . . . Level 5 . | . . . High Security . | . . . Max Security . | . . . Squads Dispatched 2 | . 2 . Investigation . | . . . Extermination . | . . . Reinforcement 2 | . 2 . Assault . | . . . Garrison . | . . . Intercept . | . . . Searches Triggered . | . . . Construction Impeded . | . . . Haulers Reinforced . | . . . Active Scanning Responses . | . . . Cargo Convoy Interrupts . | . . . Stealth | -11 -10 -9 --------- Run | Yrd Mat Mat Distress Signals 2 | . 2 . Communications Jammed . | . . . Distress Signals . | . . . Times Spotted 26 | . 19 7 Peak Tracking Total 5 | . 5 3 Tactical Retreats 3 | . 2 1 Traps | -11 -10 -9 ------- Run | Yrd Mat Mat Traps Triggered 1 | . 1 . Indirectly . | . . . Trap Hack Attempts . | . . . Triggered . | . . . Disarmed . | . . . Reprogrammed . | . . . Reused . | . . . Traps Extracted . | . . . Installed . | . . . Triggered . | . . . Machines | -11 -10 -9 ---------- Run | Yrd Mat Mat Machines Disabled . | . . . Max in Single Turn . | . . . Machines Repaired . | . . . Machines Dismantled . | . . . Machines Sabotaged . | . . . Overloaded Fab Kills . | . . . Hacking | -11 -10 -9 --------- Run | Yrd Mat Mat Machines Accessed 6 | . 5 1 Terminals 5 | . 4 1 Fabricators . | . . . Repair Stations . | . . . Recycling Units 1 | . 1 . Scanalyzers . | . . . Garrison Access . | . . . Total Hacks 9 | . 7 2 Successful 6 | . 5 1 Failed 3 | . 2 1 Catastrophic . | . . . Database Lockouts . | . . . Manual 7 | . 5 2 Terminals 7 | . 5 2 Fabricators . | . . . Repair Stations . | . . . Recycling Units 2 | . 2 . Scanalyzers . | . . . Garrison Access . | . . . Terminal Hacks . | . . . Fabricator Hacks . | . . . Repair Station Hacks . | . . . Recycling Unit Hacks 1 | . 1 . Report Inventory 1 | . 1 . Scanalyzer . | . . . Garrison Access Hacks . | . . . Unauthorized Hacks 5 | . 4 1 Terminals 5 | . 4 1 Botnet 5 | . 4 1 Fabricators . | . . . Repair Stations . | . . . Recycling Units . | . . . Scanalyzers . | . . . Garrison Access . | . . . Data Cores Recovered . | . . . Used . | . . . Hacking Detections 2 | . 2 . Full Trace Events . | . . . Feedback Events . | . . . Feedback Blocked . | . . . Robot Schematics Acquired . | . . . Robots Built . | . . . Authchips . | . . . Time . | . . . Total Robot Build Rating . | . . . Part Schematics Acquired . | . . . Parts Built . | . . . Authchips . | . . . Time . | . . . Total Part Build Rating . | . . . Parts Repaired . | . . . Time . | . . . Parts Recycled . | . . . Recycled Matter . | . . . Retrieved Matter . | . . . Retrieved Components . | . . . Parts Scanalyzed . | . . . Part Schematics Acquired . | . . . Parts Damaged . | . . . Bothacking | -11 -10 -9 ------------ Run | Yrd Mat Mat Used RIF Installer . | . . . Robots Hacked . | . . . Non-combat . | . . . Combat . | . . . Robot Hacks Applied . | . . . Relay Couplers Released . | . . . Fabnet Peak Effective % . | . . . Robots Rewired . | . . . Allies Hacked . | . . . Hacks Repelled . | . . . Allies | -11 -10 -9 -------- Run | Yrd Mat Mat Total Allies . | . . . Largest Group . | . . . Highest-Rated Group . | . . . Highest-Rated Ally . | . . . Total Orders . | . . . Ally Attacks . | . . . Total Damage . | . . . Kills . | . . . Allies Corrupted . | . . . Allies Melted . | . . . Intel | -11 -10 -9 ------- Run | Yrd Mat Mat Robot Analysis Total . | . . . Derelict Logs Recovered . | . . . Drone Launches . | . . . Drone Recoveries . | . . . Exploration | -11 -10 -9 ------------- Run | Yrd Mat Mat Turns Passed 1036 | 40 709 287 Spaces Moved 632 | 35 456 141 Core 11 | 11 . . Treads 4 | 4 . . Legs . | . . . Wheels 617 | 20 456 141 Hover . | . . . Flight . | . . . Fastest Speed 50 | 50 80 130 Average Speed 116 | 79 114 134 Slowest Speed 160 | 160 135 135 Overloaded Moves . | . . . Propulsion Burnouts . | . . . Robots Hopped . | . . . Cave-ins Triggered . | . . . Exploration Rate (%) 31 | 3 77 15 Regions Visited 2 Branch Regions . Pre-discovered Areas . | . . . Known Exits Taken . | . . . Unknown Exits Taken 2 | 1 1 . Scrap Searched . | . . . Spaces Dug 1 | . . 1 Terrain Destroyed 1 | . . 1 Melee 1 | . . 1 Projectile . | . . . AOE . | . . . Terrain Rammed . | . . . Walls Destroyed . | . . . Machines Disabled . | . . . Actions | -11 -10 -9 --------- Run | Yrd Mat Mat Total 815 | 46 564 205 Wait 59 | . 37 22 Move 630 | 34 455 141 Hop . | . . . Pick Up 29 | 6 14 9 Fast Attach 1 | 1 . . Attach 21 | 5 7 9 Detach . | . . . Swap 6 | . 3 3 Drop 7 | . 3 4 Fire 61 | . 45 16 Melee 1 | . . 1 Ram . | . . . Kick . | . . . Crush . | . . . Escape Stasis . | . . . Rewire . | . . . Trap . | . . . Miscellaneous . | . . . Route ------- -11/Scrapyard -10/Materials (discovered 4 exits: *Mat x2 / [*Min x2]) -9/Materials History --------- Turn | Location | Event 15 | -11/Scrapyard | Discovered new exit (range 16) 41 | -11/Scrapyard | Entered Materials 174 | -10/Materials | Discovered new exit (range 12) 311 | -10/Materials | Build established: Mutant 429 | -10/Materials | Core integrity fell below 50% 461 | -10/Materials | Discovered new exit (range 11) 603 | -10/Materials | Discovered new exit (range 11) 716 | -10/Materials | Discovered new exit (range 9) 750 | -10/Materials | Entered another Materials area 750 | -9/Materials | Evolved 2 slots: Utility x1, Weapon x1 1037 | -9/Materials | Self-destructed Last Messages --------------- 00871_ K-01 Serf collects debris. 00895_ Acquired Particle Cannon. 00912_ Y-45 Defender destroyed. 00917_ Acquired 42 matter. 00918_ Acquired 3 matter. 00932_ T-07 Excavator is excavating. 00942_ K-01 Serf collects debris. 00986_ Dropped Lgt. Cannon. 00987_ Dropped Particle Cannon. 00993_ Acquired Shock Rifle. 00995_ Critical hit (Burn: +37). 00995_ Acquired Shock Rifle. 01001_ Lgt. Ion Engine destroyed. 01001_ Critical hit (Burn: +37). 01009_ R-06 Scavenger collects Lgt. Cannon. 01010_ Wheel destroyed. 01010_ Com. Wheel destroyed. 01016_ Lgt. Ion Engine destroyed. 01028_ Com. Wheel destroyed. 01031_ Y-45 Defender misfires. Map ----- +----------------------------------------------------+ | ??????????????????????????? ???? | | ??????????????????????????? ???? | | ??????????????????????????? ???? | | ??????????????????????????? ???? | | ??????????????????????????? ???? | | ??????????????????????????? ???? | | ??????????????????????????? ???? | | ??????????????????????????? ???? | | ??????????????????????????? ???? | | ??????????????????????????? ???? | | ?????????## ???##########?? ???? | | ???????# #?# #??# #???? | | ???????# ??# #??# #???? | | ???????# ??# #??# #???? | | ???????# ??# """ #??# #???? | | ???????? ??# """"" ####+##### | | ????##### #??# """"" + + = # | | ????#!! Y #??# """"" #### # | | ????#!! #??# """ #??# """# | | ????#!! #??# #??# """# | | ????#!! ####+###+####### """# | | ????#]] k t !# """# | | ????#]] ] / """# | | ????##### ] #* # | | ???????## ##### ### ## # | | ???????# @ #???# #?# ## # | | ???????#!!// #???# #?# ## # | | ???????#!!// #???# #?# ## # | | ???????########???# #?# ######## | | ??????????????????# #?# #??????? | | ???????????######## #?# #??????? | | ???????????# # #?# #??????? | | ???????????# # ### ###?###? | | ???????????# " + # # #? | | ???????????# T [ #% # #? | | ???????????# " #%! # # #? | | ???????????# "^ # #?###? | | ???????????######## # #????? | | ?????????########## %%#######????? | | ?????????# = # [#??????????? | | ?????????# """ # #??????????? | | ?????????# """ # #??????????? | | ?????????# """ # #??????????? | | ?????????# = "== #??????????? | | ?????????# """%# #??????????? | | ?????????# """ # [ #??????????? | | ?????????# """ # #??????????? | | ?????????# # #??????????? | | ?????????########## #??????????? | | ??????????????????# #??????????? | +----------------------------------------------------+ Best States ------------- Heat Dissipation 42 Energy Generation 10 Energy Capacity 125 Matter Stores 300 Matter Capacity 300 Sight Range 16 Terrain Scan Density 10 Armor Coverage 150 Evasion (%) 50 Recoil Reduction 1 Item Schematics ----------------- None Robot Schematics ------------------ None Fabricated ------------ Nothing Alien Tech Used ----------------- None Achievements -------------- None Challenges ------------ None Game ------ Seed SigixSchematicExoskeleton Manual? 0 Play Time 00:15:42 Cumulative 28.5 hours Start 2025.01.11 @ 16:50:50 End 2025.01.11 @ 17:05:22 Sessions 1 Manual Loads 0 Difficulty Rogue Special Mode None Game No. 40 Rogue 37 Adventurer 0 Explorer 3 Win Type - Total 0 Types 0/0/0/0/0/0/0/0/0 Lore% 6 Gallery% 25 Achievement% 24 Wizard Run 0 Options --------- Layout 0 ASCII 0 Keyboard 0 Movement Numpad Keybinds 0 Fullscreen 0 Font 16/SmallcapsGlow Map View 88x55 Zoom Use 0% Tactical HUD 1 Map Filters NONE Filters NONE Steam 1 RUN: b2350f67-5c87-44fa-bb8e-5692b12354fc